[Event "Titled Tuesday Blitz January 17 Early 2023"]
[White "Kobalia, Mikhail"]
[Black "Albertini, Luca"]
[WhiteFideId "4119150"]
[BlackFideId "847038"]
[WhiteElo "2578"]
[BlackElo "2084"]
[Result "1-0"]
[Round "01"]
[TimeControl "180+2"]
[Date "2023.01.17"]
[WhiteClock "0:01:28"]
[BlackClock "0:00:10"]

1. e4 {[%clk 0:02:52]}  e5 {[%clk 0:02:53]} 2. Nf3 {[%clk 0:02:52]}  Nc6 {[%clk 0:02:53]} 3. Bb5 {[%clk 0:02:51]}  a6 {[%clk 0:02:53]} 4. Ba4 {[%clk 0:02:51]}  Nf6 {[%clk 0:02:53]} 5. O-O {[%clk 0:02:50]}  b5 {[%clk 0:02:48]} 6. Bb3 {[%clk 0:02:49]}  Be7 {[%clk 0:02:49]} 7. d3 {[%clk 0:02:47]}  O-O {[%clk 0:02:48]} 8. a4 {[%clk 0:02:47]}  b4 {[%clk 0:02:46]} 9. Nbd2 {[%clk 0:02:47]}  d6 {[%clk 0:02:45]} 10. a5 {[%clk 0:02:46]}  Be6 {[%clk 0:02:36]} 11. Nc4 {[%clk 0:02:45]}  Nd7 {[%clk 0:02:17]} 12. Be3 {[%clk 0:02:42]}  Kh8 {[%clk 0:02:12]} 13. h3 {[%clk 0:02:23]}  f5 {[%clk 0:02:00]} 14. Ncxe5 {[%clk 0:02:03]}  Ncxe5 {[%clk 0:01:45]} 15. Nxe5 {[%clk 0:01:52]}  Nxe5 {[%clk 0:01:37]} 16. Bxe6 {[%clk 0:01:52]}  f4 {[%clk 0:01:37]} 17. Bd2 {[%clk 0:01:50]}  f3 {[%clk 0:01:36]} 18. g3 {[%clk 0:01:42]}  Bg5 {[%clk 0:01:30]} 19. d4 {[%clk 0:01:38]}  Ng6 {[%clk 0:00:28]} 20. Bg4 {[%clk 0:01:35]}  Bxd2 {[%clk 0:00:21]} 21. Qxd2 {[%clk 0:01:36]}  Qf6 {[%clk 0:00:21]} 22. Rfe1 {[%clk 0:01:31]}  Rab8 {[%clk 0:00:10]} 23. Rad1 {[%clk 0:01:30]}  Qg5 {[%clk 0:00:10]} 24. Qxg5 {[%clk 0:01:28]} 1-0


[Site "https://www.chess.com"]

[Event "Titled Tuesday Blitz January 17 Early 2023"]
[White "Batsiashvili, Nino"]
[Black "Gurvich, Vitaly"]
[WhiteFideId "13602993"]
[BlackFideId "24164852"]
[WhiteElo "2467"]
[BlackElo "2278"]
[Result "0-1"]
[Round "01"]
[TimeControl "180+2"]
[Date "2023.01.17"]
[WhiteClock "0:00:14"]
[BlackClock "0:00:52"]

1. d4 {[%clk 0:03:00]}  Nf6 {[%clk 0:02:59]} 2. c4 {[%clk 0:03:01]}  g6 {[%clk 0:02:56]} 3. Nc3 {[%clk 0:03:01]}  d5 {[%clk 0:02:56]} 4. cxd5 {[%clk 0:02:58]}  Nxd5 {[%clk 0:02:56]} 5. e4 {[%clk 0:02:59]}  Nxc3 {[%clk 0:02:57]} 6. bxc3 {[%clk 0:02:59]}  Bg7 {[%clk 0:02:57]} 7. Be3 {[%clk 0:02:59]}  O-O {[%clk 0:02:53]} 8. Bc4 {[%clk 0:02:59]}  c5 {[%clk 0:02:53]} 9. Ne2 {[%clk 0:02:56]}  Qa5 {[%clk 0:02:26]} 10. O-O {[%clk 0:02:46]}  cxd4 {[%clk 0:02:26]} 11. cxd4 {[%clk 0:02:46]}  Nc6 {[%clk 0:02:26]} 12. d5 {[%clk 0:02:27]}  Ne5 {[%clk 0:02:21]} 13. Bb3 {[%clk 0:02:26]}  Bd7 {[%clk 0:02:20]} 14. Nd4 {[%clk 0:01:54]}  Ng4 {[%clk 0:02:11]} 15. Bg5 {[%clk 0:01:54]}  Qb4 {[%clk 0:01:56]} 16. Nc2 {[%clk 0:01:39]}  Qd6 {[%clk 0:01:44]} 17. g3 {[%clk 0:01:28]}  Bxa1 {[%clk 0:01:43]} 18. Qxa1 {[%clk 0:01:28]}  Rfc8 {[%clk 0:01:42]} 19. Kg2 {[%clk 0:01:07]}  a5 {[%clk 0:01:34]} 20. Ne3 {[%clk 0:00:44]}  a4 {[%clk 0:01:30]} 21. Bd1 {[%clk 0:00:44]}  Nxe3+ {[%clk 0:01:24]} 22. Bxe3 {[%clk 0:00:45]}  Qb4 {[%clk 0:01:23]} 23. Bd4 {[%clk 0:00:41]}  Bb5 {[%clk 0:01:18]} 24. Bg4 {[%clk 0:00:33]}  Bxf1+ {[%clk 0:01:15]} 25. Kxf1 {[%clk 0:00:33]}  Rc4 {[%clk 0:01:14]} 26. Bh8 {[%clk 0:00:32]}  f6 {[%clk 0:01:07]} 27. Bxf6 {[%clk 0:00:31]}  Rxe4 {[%clk 0:01:05]} 28. Bh8 {[%clk 0:00:20]}  Qe1+ {[%clk 0:01:03]} 29. Qxe1 {[%clk 0:00:19]}  Rxe1+ {[%clk 0:01:04]} 30. Kxe1 {[%clk 0:00:20]}  Kxh8 {[%clk 0:01:05]} 31. Kd2 {[%clk 0:00:20]}  Kg7 {[%clk 0:01:04]} 32. f4 {[%clk 0:00:20]}  Kf6 {[%clk 0:01:04]} 33. Kd3 {[%clk 0:00:20]}  Ra6 {[%clk 0:01:04]} 34. Bd1 {[%clk 0:00:20]}  a3 {[%clk 0:01:03]} 35. Bb3 {[%clk 0:00:20]}  Rb6 {[%clk 0:01:04]} 36. Kc3 {[%clk 0:00:18]}  g5 {[%clk 0:01:01]} 37. fxg5+ {[%clk 0:00:18]}  Kxg5 {[%clk 0:01:02]} 38. h3 {[%clk 0:00:17]}  h5 {[%clk 0:01:01]} 39. Kc4 {[%clk 0:00:17]}  Rf6 {[%clk 0:00:59]} 40. Kb4 {[%clk 0:00:16]}  Rf3 {[%clk 0:00:59]} 41. Kxa3 {[%clk 0:00:16]}  Rxg3 {[%clk 0:00:58]} 42. Kb4 {[%clk 0:00:17]}  Rxh3 {[%clk 0:00:58]} 43. Kb5 {[%clk 0:00:17]}  Re3 {[%clk 0:00:55]} 44. Kb6 {[%clk 0:00:16]}  h4 {[%clk 0:00:55]} 45. Kxb7 {[%clk 0:00:15]}  h3 {[%clk 0:00:56]} 46. d6 {[%clk 0:00:16]}  exd6 {[%clk 0:00:55]} 47. Bd5 {[%clk 0:00:16]}  h2 {[%clk 0:00:55]} 48. a4 {[%clk 0:00:16]}  Re1 {[%clk 0:00:55]} 49. a5 {[%clk 0:00:15]}  h1=Q {[%clk 0:00:51]} 50. Bxh1 {[%clk 0:00:16]}  Rxh1 {[%clk 0:00:52]} 51. a6 {[%clk 0:00:14]}  d5 {[%clk 0:00:52]} 52. a7 {[%clk 0:00:14]}  Rh7+ {[%clk 0:00:52]} 53. Kb6 {[%clk 0:00:14]}  Rxa7 {[%clk 0:00:52]} 0-1


[Site "https://www.chess.com"]

[Event "Titled Tuesday Blitz January 17 Early 2023"]
[White "Rakotomaharo, Fy Antenaina"]
[Black "Forgacs, Attila Jr."]
[WhiteFideId "13100050"]
[BlackFideId "773654"]
[WhiteElo "2459"]
[BlackElo "2264"]
[Result "1-0"]
[Round "01"]
[TimeControl "180+2"]
[Date "2023.01.17"]
[WhiteClock "0:01:29"]
[BlackClock "0:00:13"]

1. e4 {[%clk 0:03:00]}  e5 {[%clk 0:02:59]} 2. Nf3 {[%clk 0:03:00]}  Nc6 {[%clk 0:03:00]} 3. Nc3 {[%clk 0:03:00]}  Nf6 {[%clk 0:03:00]} 4. h3 {[%clk 0:03:00]}  d5 {[%clk 0:02:59]} 5. exd5 {[%clk 0:03:01]}  Nxd5 {[%clk 0:03:00]} 6. Bb5 {[%clk 0:03:01]}  Nxc3 {[%clk 0:02:58]} 7. bxc3 {[%clk 0:03:02]}  Bd6 {[%clk 0:02:56]} 8. O-O {[%clk 0:03:02]}  O-O {[%clk 0:02:56]} 9. d4 {[%clk 0:03:01]}  exd4 {[%clk 0:02:56]} 10. cxd4 {[%clk 0:03:02]}  Bf5 {[%clk 0:02:52]} 11. c3 {[%clk 0:03:02]}  Qf6 {[%clk 0:02:51]} 12. Re1 {[%clk 0:02:59]}  h6 {[%clk 0:02:39]} 13. a4 {[%clk 0:02:57]}  a6 {[%clk 0:02:37]} 14. Bd3 {[%clk 0:02:57]}  Rfe8 {[%clk 0:02:33]} 15. Be3 {[%clk 0:02:55]}  Ne7 {[%clk 0:02:27]} 16. c4 {[%clk 0:02:52]}  Bxd3 {[%clk 0:02:25]} 17. Qxd3 {[%clk 0:02:53]}  Nf5 {[%clk 0:02:24]} 18. c5 {[%clk 0:02:52]}  Bf8 {[%clk 0:02:18]} 19. Bf4 {[%clk 0:02:47]}  c6 {[%clk 0:02:13]} 20. Be5 {[%clk 0:02:45]}  Qg6 {[%clk 0:02:06]} 21. Rab1 {[%clk 0:02:34]}  Re7 {[%clk 0:01:57]} 22. Bh2 {[%clk 0:02:30]}  Rxe1+ {[%clk 0:01:48]} 23. Rxe1 {[%clk 0:02:29]}  Rd8 {[%clk 0:01:42]} 24. Qe4 {[%clk 0:02:24]}  Ne7 {[%clk 0:01:35]} 25. Qxg6 {[%clk 0:02:17]}  Nxg6 {[%clk 0:01:36]} 26. Rb1 {[%clk 0:02:15]}  Rd7 {[%clk 0:01:35]} 27. g4 {[%clk 0:02:13]}  f6 {[%clk 0:01:32]} 28. h4 {[%clk 0:02:12]}  Kf7 {[%clk 0:01:29]} 29. h5 {[%clk 0:02:12]}  Ne7 {[%clk 0:01:29]} 30. Kf1 {[%clk 0:02:03]}  Nd5 {[%clk 0:01:28]} 31. Rb3 {[%clk 0:02:02]}  Be7 {[%clk 0:01:15]} 32. Ke2 {[%clk 0:01:59]}  Bd8 {[%clk 0:01:14]} 33. Kd3 {[%clk 0:01:57]}  Ba5 {[%clk 0:01:09]} 34. Kc4 {[%clk 0:01:53]}  Ke6 {[%clk 0:00:42]} 35. Nh4 {[%clk 0:01:53]}  Ne7 {[%clk 0:00:34]} 36. Bd6 {[%clk 0:01:50]}  Bc7 {[%clk 0:00:15]} 37. Bxe7 {[%clk 0:01:38]}  Rxe7 {[%clk 0:00:16]} 38. Nf5 {[%clk 0:01:38]}  Rd7 {[%clk 0:00:15]} 39. Re3+ {[%clk 0:01:37]}  Kf7 {[%clk 0:00:15]} 40. f3 {[%clk 0:01:33]}  Bf4 {[%clk 0:00:14]} 41. Rb3 {[%clk 0:01:33]}  Bd2 {[%clk 0:00:14]} 42. Kd3 {[%clk 0:01:31]}  Bf4 {[%clk 0:00:14]} 43. Ke4 {[%clk 0:01:31]}  Bb8 {[%clk 0:00:14]} 44. Rd3 {[%clk 0:01:28]}  Bc7 {[%clk 0:00:11]} 45. d5 {[%clk 0:01:28]}  cxd5+ {[%clk 0:00:12]} 46. Rxd5 {[%clk 0:01:29]}  Rxd5 {[%clk 0:00:11]} 47. Kxd5 {[%clk 0:01:30]}  Bb8 {[%clk 0:00:10]} 48. Nd6+ {[%clk 0:01:27]}  Bxd6 {[%clk 0:00:10]} 49. Kxd6 {[%clk 0:01:27]}  f5 {[%clk 0:00:09]} 50. Kc7 {[%clk 0:01:28]}  fxg4 {[%clk 0:00:09]} 51. fxg4 {[%clk 0:01:28]}  Ke6 {[%clk 0:00:10]} 52. Kxb7 {[%clk 0:01:29]}  Kd5 {[%clk 0:00:11]} 53. c6 {[%clk 0:01:29]}  Kc5 {[%clk 0:00:10]} 54. c7 {[%clk 0:01:30]}  g5 {[%clk 0:00:10]} 55. hxg6 {[%clk 0:01:29]}  h5 {[%clk 0:00:10]} 56. gxh5 {[%clk 0:01:30]}  Kb4 {[%clk 0:00:11]} 57. g7 {[%clk 0:01:30]}  Ka5 {[%clk 0:00:12]} 58. g8=Q {[%clk 0:01:30]}  Kb4 {[%clk 0:00:12]} 59. c8=Q {[%clk 0:01:29]}  Ka5 {[%clk 0:00:13]} 60. Qc5+ {[%clk 0:01:29]}  Kxa4 {[%clk 0:00:13]} 61. Qa2# {[%clk 0:01:29]} 1-0


[Site "https://www.chess.com"]

[Event "Titled Tuesday Blitz January 17 Early 2023"]
[White "Averjanov, Alexey"]
[Black "Szyszylo, Rafal"]
[WhiteFideId "14109867"]
[BlackFideId "1109626"]
[WhiteElo "2399"]
[BlackElo "2091"]
[Result "1/2-1/2"]
[Round "01"]
[TimeControl "180+2"]
[Date "2023.01.17"]
[WhiteClock "0:00:25"]
[BlackClock "0:00:03"]

1. d4 {[%clk 0:03:00]}  g6 {[%clk 0:02:58]} 2. c4 {[%clk 0:03:00]}  d6 {[%clk 0:02:58]} 3. Nf3 {[%clk 0:03:00]}  Nf6 {[%clk 0:02:59]} 4. Nc3 {[%clk 0:03:00]}  Bg7 {[%clk 0:02:59]} 5. e4 {[%clk 0:03:00]}  O-O {[%clk 0:03:00]} 6. Be2 {[%clk 0:03:00]}  Na6 {[%clk 0:03:00]} 7. O-O {[%clk 0:03:00]}  e5 {[%clk 0:03:01]} 8. Bg5 {[%clk 0:02:54]}  h6 {[%clk 0:02:55]} 9. Be3 {[%clk 0:02:54]}  Ng4 {[%clk 0:02:50]} 10. Bc1 {[%clk 0:02:53]}  f5 {[%clk 0:02:50]} 11. h3 {[%clk 0:02:47]}  Nf6 {[%clk 0:02:49]} 12. dxe5 {[%clk 0:02:47]}  dxe5 {[%clk 0:02:48]} 13. exf5 {[%clk 0:02:43]}  Bxf5 {[%clk 0:02:32]} 14. Nxe5 {[%clk 0:02:42]}  Re8 {[%clk 0:02:17]} 15. Bf4 {[%clk 0:02:38]}  g5 {[%clk 0:02:09]} 16. Bg3 {[%clk 0:02:34]}  Ne4 {[%clk 0:01:57]} 17. Nxe4 {[%clk 0:02:31]}  Bxe4 {[%clk 0:01:54]} 18. Nd3 {[%clk 0:02:15]}  Qf6 {[%clk 0:01:37]} 19. Qb3 {[%clk 0:02:03]}  Bxd3 {[%clk 0:01:09]} 20. Bxd3 {[%clk 0:02:03]}  Nc5 {[%clk 0:01:09]} 21. Qa3 {[%clk 0:02:03]}  Nxd3 {[%clk 0:01:09]} 22. Qxd3 {[%clk 0:02:01]}  Rad8 {[%clk 0:01:08]} 23. Qb3 {[%clk 0:01:54]}  Qxb2 {[%clk 0:01:00]} 24. Rab1 {[%clk 0:01:52]}  Qxb3 {[%clk 0:00:52]} 25. Rxb3 {[%clk 0:01:53]}  b6 {[%clk 0:00:47]} 26. Bxc7 {[%clk 0:01:52]}  Rc8 {[%clk 0:00:45]} 27. Bg3 {[%clk 0:01:51]}  Rxc4 {[%clk 0:00:44]} 28. Ra3 {[%clk 0:01:50]}  a5 {[%clk 0:00:40]} 29. Rb3 {[%clk 0:01:49]}  Bd4 {[%clk 0:00:39]} 30. Rd1 {[%clk 0:01:41]}  Re7 {[%clk 0:00:30]} 31. Rbd3 {[%clk 0:01:40]}  Bc5 {[%clk 0:00:30]} 32. Bd6 {[%clk 0:01:35]}  Rd7 {[%clk 0:00:25]} 33. Bxc5 {[%clk 0:01:32]}  Rxd3 {[%clk 0:00:25]} 34. Rxd3 {[%clk 0:01:32]}  bxc5 {[%clk 0:00:22]} 35. Rd6 {[%clk 0:01:31]}  Kg7 {[%clk 0:00:22]} 36. Ra6 {[%clk 0:01:29]}  Ra4 {[%clk 0:00:21]} 37. Rc6 {[%clk 0:01:29]}  c4 {[%clk 0:00:20]} 38. Kf1 {[%clk 0:01:26]}  Rxa2 {[%clk 0:00:19]} 39. Rxc4 {[%clk 0:01:25]}  a4 {[%clk 0:00:19]} 40. g3 {[%clk 0:01:22]}  h5 {[%clk 0:00:18]} 41. Rc6 {[%clk 0:01:21]}  a3 {[%clk 0:00:16]} 42. Ra6 {[%clk 0:01:21]}  Ra1+ {[%clk 0:00:15]} 43. Ke2 {[%clk 0:01:21]}  a2 {[%clk 0:00:13]} 44. Kf3 {[%clk 0:01:19]}  Rh1 {[%clk 0:00:10]} 45. Rxa2 {[%clk 0:01:17]}  Rxh3 {[%clk 0:00:11]} 46. Kg2 {[%clk 0:01:13]}  g4 {[%clk 0:00:08]} 47. Ra6 {[%clk 0:01:09]}  Kh7 {[%clk 0:00:08]} 48. Rb6 {[%clk 0:01:08]}  Kg7 {[%clk 0:00:07]} 49. Rc6 {[%clk 0:01:07]}  Kh7 {[%clk 0:00:07]} 50. Rd6 {[%clk 0:01:07]}  Kg7 {[%clk 0:00:07]} 51. Re6 {[%clk 0:01:02]}  Kh7 {[%clk 0:00:07]} 52. f3 {[%clk 0:00:58]}  Kg7 {[%clk 0:00:07]} 53. Re4 {[%clk 0:00:56]}  Kf6 {[%clk 0:00:03]} 54. fxg4 {[%clk 0:00:50]}  hxg4 {[%clk 0:00:04]} 55. Rxg4 {[%clk 0:00:50]}  Rh8 {[%clk 0:00:05]} 56. Rf4+ {[%clk 0:00:49]}  Kg6 {[%clk 0:00:05]} 57. Rc4 {[%clk 0:00:50]}  Rb8 {[%clk 0:00:05]} 58. Kh3 {[%clk 0:00:49]}  Kg5 {[%clk 0:00:05]} 59. Rc5+ {[%clk 0:00:49]}  Kg6 {[%clk 0:00:05]} 60. Kh4 {[%clk 0:00:48]}  Rb6 {[%clk 0:00:06]} 61. Rc4 {[%clk 0:00:48]}  Ra6 {[%clk 0:00:06]} 62. Rg4+ {[%clk 0:00:47]}  Kh6 {[%clk 0:00:06]} 63. Rd4 {[%clk 0:00:47]}  Kg6 {[%clk 0:00:06]} 64. g4 {[%clk 0:00:46]}  Rb6 {[%clk 0:00:05]} 65. Ra4 {[%clk 0:00:45]}  Rc6 {[%clk 0:00:05]} 66. Ra5 {[%clk 0:00:46]}  Rb6 {[%clk 0:00:06]} 67. Rc5 {[%clk 0:00:46]}  Ra6 {[%clk 0:00:06]} 68. Rc4 {[%clk 0:00:46]}  Rb6 {[%clk 0:00:06]} 69. Rc3 {[%clk 0:00:46]}  Ra6 {[%clk 0:00:06]} 70. Rb3 {[%clk 0:00:46]}  Rc6 {[%clk 0:00:07]} 71. Rb2 {[%clk 0:00:46]}  Ra6 {[%clk 0:00:07]} 72. Rb1 {[%clk 0:00:47]}  Rc6 {[%clk 0:00:08]} 73. Ra1 {[%clk 0:00:47]}  Rb6 {[%clk 0:00:08]} 74. Rc1 {[%clk 0:00:47]}  Ra6 {[%clk 0:00:08]} 75. Rd1 {[%clk 0:00:48]}  Rb6 {[%clk 0:00:08]} 76. Rd5 {[%clk 0:00:48]}  Ra6 {[%clk 0:00:09]} 77. Rg5+ {[%clk 0:00:48]}  Kh6 {[%clk 0:00:09]} 78. Rh5+ {[%clk 0:00:48]}  Kg6 {[%clk 0:00:09]} 79. Rh8 {[%clk 0:00:48]}  Rb6 {[%clk 0:00:08]} 80. Ra8 {[%clk 0:00:48]}  Rc6 {[%clk 0:00:09]} 81. Ra4 {[%clk 0:00:48]}  Rb6 {[%clk 0:00:09]} 82. Kg3 {[%clk 0:00:48]}  Rc6 {[%clk 0:00:09]} 83. Rb4 {[%clk 0:00:49]}  Ra6 {[%clk 0:00:09]} 84. Kf4 {[%clk 0:00:49]}  Rf6+ {[%clk 0:00:09]} 85. Ke5 {[%clk 0:00:48]}  Ra6 {[%clk 0:00:10]} 86. Kf4 {[%clk 0:00:48]}  Rf6+ {[%clk 0:00:10]} 87. Kg3 {[%clk 0:00:48]}  Ra6 {[%clk 0:00:10]} 88. Rb7 {[%clk 0:00:47]}  Rc6 {[%clk 0:00:11]} 89. Rd7 {[%clk 0:00:46]}  Rb6 {[%clk 0:00:11]} 90. Rd8 {[%clk 0:00:46]}  Rc6 {[%clk 0:00:11]} 91. Rg8+ {[%clk 0:00:46]}  Kh6 {[%clk 0:00:09]} 92. Kh4 {[%clk 0:00:44]}  Rc4 {[%clk 0:00:07]} 93. Re8 {[%clk 0:00:43]}  Rc6 {[%clk 0:00:07]} 94. Re5 {[%clk 0:00:42]}  Kg6 {[%clk 0:00:06]} 95. Rg5+ {[%clk 0:00:41]}  Kh6 {[%clk 0:00:06]} 96. Rf5 {[%clk 0:00:41]}  Kg6 {[%clk 0:00:07]} 97. Rb5 {[%clk 0:00:41]}  Ra6 {[%clk 0:00:06]} 98. Rc5 {[%clk 0:00:41]}  Rb6 {[%clk 0:00:06]} 99. Rc8 {[%clk 0:00:41]}  Ra6 {[%clk 0:00:06]} 100. Rd8 {[%clk 0:00:41]}  Rb6 {[%clk 0:00:06]} 101. Rg8+ {[%clk 0:00:40]}  Kh6 {[%clk 0:00:05]} 102. g5+ {[%clk 0:00:39]}  Kh7 {[%clk 0:00:06]} 103. Rd8 {[%clk 0:00:38]}  Kg6 {[%clk 0:00:06]} 104. Rd4 {[%clk 0:00:38]}  Rc6 {[%clk 0:00:06]} 105. Re4 {[%clk 0:00:38]}  Ra6 {[%clk 0:00:06]} 106. Rc4 {[%clk 0:00:38]}  Rb6 {[%clk 0:00:07]} 107. Ra4 {[%clk 0:00:38]}  Rc6 {[%clk 0:00:07]} 108. Kg4 {[%clk 0:00:37]}  Rb6 {[%clk 0:00:07]} 109. Rc4 {[%clk 0:00:38]}  Ra6 {[%clk 0:00:07]} 110. Rd4 {[%clk 0:00:38]}  Rb6 {[%clk 0:00:08]} 111. Re4 {[%clk 0:00:38]}  Ra6 {[%clk 0:00:09]} 112. Rf4 {[%clk 0:00:38]}  Rb6 {[%clk 0:00:09]} 113. Rd4 {[%clk 0:00:37]}  Rc6 {[%clk 0:00:09]} 114. Rb4 {[%clk 0:00:37]}  Ra6 {[%clk 0:00:09]} 115. Rb8 {[%clk 0:00:37]}  Rc6 {[%clk 0:00:09]} 116. Ra8 {[%clk 0:00:36]}  Rb6 {[%clk 0:00:09]} 117. Rg8+ {[%clk 0:00:35]}  Kh7 {[%clk 0:00:09]} 118. Rf8 {[%clk 0:00:34]}  Kg6 {[%clk 0:00:08]} 119. Rg8+ {[%clk 0:00:33]}  Kh7 {[%clk 0:00:08]} 120. Rd8 {[%clk 0:00:33]}  Kg6 {[%clk 0:00:08]} 121. Rd4 {[%clk 0:00:31]}  Rc6 {[%clk 0:00:08]} 122. Kf4 {[%clk 0:00:31]}  Rb6 {[%clk 0:00:08]} 123. Rc4 {[%clk 0:00:31]}  Ra6 {[%clk 0:00:08]} 124. Rb4 {[%clk 0:00:31]}  Rc6 {[%clk 0:00:08]} 125. Ra4 {[%clk 0:00:31]}  Rb6 {[%clk 0:00:08]} 126. Re4 {[%clk 0:00:30]}  Rc6 {[%clk 0:00:09]} 127. Re8 {[%clk 0:00:30]}  Rb6 {[%clk 0:00:08]} 128. Rg8+ {[%clk 0:00:29]}  Kh7 {[%clk 0:00:08]} 129. Rf8 {[%clk 0:00:28]}  Kg6 {[%clk 0:00:07]} 130. Rc8 {[%clk 0:00:26]}  Rb4+ {[%clk 0:00:06]} 131. Ke3 {[%clk 0:00:25]}  Kxg5 {[%clk 0:00:07]} 132. Rc5+ {[%clk 0:00:25]}  Kf6 {[%clk 0:00:07]} 133. Rd5 {[%clk 0:00:25]}  Rc4 {[%clk 0:00:07]} 134. Rd3 {[%clk 0:00:25]}  Ra4 {[%clk 0:00:07]} 135. Rc3 {[%clk 0:00:25]}  Rb4 {[%clk 0:00:07]} 136. Kd3 {[%clk 0:00:25]}  Ke6 {[%clk 0:00:07]} 137. Rc5 {[%clk 0:00:25]}  Rh4 {[%clk 0:00:07]} 138. Ke3 {[%clk 0:00:25]}  Kd6 {[%clk 0:00:06]} 139. Rg5 {[%clk 0:00:24]}  Ke6 {[%clk 0:00:06]} 140. Kf3 {[%clk 0:00:25]}  Rh3+ {[%clk 0:00:06]} 141. Ke4 {[%clk 0:00:24]}  Ra3 {[%clk 0:00:07]} 142. Rg6+ {[%clk 0:00:24]}  Kf7 {[%clk 0:00:07]} 143. Rc6 {[%clk 0:00:24]}  Ra5 {[%clk 0:00:07]} 144. Rd6 {[%clk 0:00:24]}  Ke7 {[%clk 0:00:07]} 145. Rb6 {[%clk 0:00:24]}  Ra4+ {[%clk 0:00:06]} 146. Ke5 {[%clk 0:00:24]}  Ra5+ {[%clk 0:00:06]} 147. Kd4 {[%clk 0:00:24]}  Rh5 {[%clk 0:00:07]} 148. Rb7+ {[%clk 0:00:24]}  Kd6 {[%clk 0:00:07]} 149. Rb6+ {[%clk 0:00:25]}  Kd7 {[%clk 0:00:07]} 150. Rg6 {[%clk 0:00:24]}  Ra5 {[%clk 0:00:06]} 151. Ke4 {[%clk 0:00:25]}  Ke7 {[%clk 0:00:06]} 152. Rh6 {[%clk 0:00:25]}  Kf7 {[%clk 0:00:06]} 153. Rc6 {[%clk 0:00:25]}  Ke7 {[%clk 0:00:07]} 154. Kd3 {[%clk 0:00:25]}  Ra4 {[%clk 0:00:07]} 155. Kc3 {[%clk 0:00:25]}  Kd7 {[%clk 0:00:07]} 156. Rb6 {[%clk 0:00:25]}  Kc7 {[%clk 0:00:07]} 157. Rg6 {[%clk 0:00:25]}  Rh4 {[%clk 0:00:06]} 158. Kd2 {[%clk 0:00:24]}  Kd7 {[%clk 0:00:07]} 159. Ke3 {[%clk 0:00:24]}  Ke7 {[%clk 0:00:07]} 160. Kf3 {[%clk 0:00:24]}  Kf7 {[%clk 0:00:08]} 161. Rg3 {[%clk 0:00:24]}  Rb4 {[%clk 0:00:08]} 162. Rg1 {[%clk 0:00:24]}  Kf6 {[%clk 0:00:08]} 163. Rd1 {[%clk 0:00:23]}  Kf5 {[%clk 0:00:09]} 164. Rd5+ {[%clk 0:00:23]}  Ke6 {[%clk 0:00:09]} 165. Rc5 {[%clk 0:00:23]}  Ra4 {[%clk 0:00:09]} 166. Rb5 {[%clk 0:00:23]}  Rc4 {[%clk 0:00:09]} 167. Ke3 {[%clk 0:00:24]}  Ra4 {[%clk 0:00:09]} 168. Kd3 {[%clk 0:00:24]}  Rh4 {[%clk 0:00:09]} 169. Rg5 {[%clk 0:00:24]}  Kd6 {[%clk 0:00:09]} 170. Rf5 {[%clk 0:00:24]}  Ke6 {[%clk 0:00:10]} 171. Rf3 {[%clk 0:00:24]}  Kd6 {[%clk 0:00:10]} 172. Ke3 {[%clk 0:00:24]}  Ke5 {[%clk 0:00:09]} 173. Kf2 {[%clk 0:00:25]}  Rf4 {[%clk 0:00:08]} 174. Kg3 {[%clk 0:00:24]}  Rxf3+ {[%clk 0:00:03]} 175. Kxf3 {[%clk 0:00:25]} 1/2-1/2


[Site "https://www.chess.com"]